fUSD/lending_fUSD_20240706
["ID","MTS","AMOUNT","RATE_DAILY","PERIOD"]
[331325174,1720231844344,-151.0,0.0001374,2]
[331325175,1720231844353,-151.0,0.0001374,2]
[331325176,1720231844363,-151.0,0.0001374,2]
[331325177,1720231844372,-155.07574,0.0001374,2]
[331325178,1720231844381,-367.898274,0.0001374,2]
[331325179,1720231844390,-367.898274,0.0001374,2]
[331325180,1720231844401,-367.898274,0.0001374,2]
[331325181,1720231844411,-367.898274,0.0001374,2]
[331325182,1720231844421,-367.898274,0.0001374,2]
[331325183,1720231844430,-367.898274,0.0001374,2]
[331325184,1720231844439,-367.898274,0.0001374,2]
[331325185,1720231844451,-367.898274,0.0001374,2]
[331325186,1720231844461,-367.898274,0.0001374,2]
[331325187,1720231844470,-367.898274,0.0001374,2]
[331325188,1720231844480,-151.0,0.0001374,2]
[331325189,1720231844490,-151.0,0.0001374,2]
[331325190,1720231844501,-151.0,0.0001374,2]
[331325191,1720231844510,-153.878114,0.0001374,2]
[331325192,1720231844521,-234.879786,0.0001374,2]
[331325193,1720231844531,-234.879786,0.0001374,2]
[331325194,1720231844540,-234.879786,0.0001374,2]
[331325195,1720231844549,-234.879786,0.0001374,2]
[331325196,1720231844559,-234.879786,0.0001374,2]
[331325197,1720231844568,-234.879786,0.0001374,2]
[331325198,1720231844577,-234.879786,0.0001374,2]
[331325199,1720231844587,-234.879786,0.0001374,2]
[331325200,1720231844596,-234.879786,0.0001374,2]
[331325201,1720231844605,-234.879786,0.0001374,2]
[331325202,1720231844615,-234.879786,0.0001374,2]
[331325203,1720231844625,-234.879786,0.0001374,2]
[331325204,1720231844636,-234.879786,0.0001374,2]
[331325205,1720231844645,-234.879791,0.0001374,2]
[331325206,1720231844655,-150.0,0.00013743,2]
[331325207,1720231844666,-150.0,0.00013761,2]
[331325208,1720231844676,-150.0,0.00013762,2]
[331325209,1720231844685,-150.0,0.00013763,2]
[331325210,1720231844695,-150.0,0.00013779,2]
[331325211,1720231844705,-150.0,0.00013787,2]
[331325212,1720231844715,-150.0,0.00013794,2]
[331325213,1720231844725,-166.23970743,0.00013798,2]
[331325214,1720231844735,-300.0,0.00013798,2]
[331325215,1720231844743,-31968.97770948,0.00013799,2]
[331325216,1720231844753,-302.51781658,0.00013799,2]
[331325217,1720231844762,-367.898274,0.00013799,2]
[331325218,1720231844771,-367.89827,0.00013799,2]
[331325219,1720231844780,-1072.47429304,0.000138,5]
[331325220,1720231844790,-2700.0,0.000138,5]
[331325221,1720231844799,-150.0,0.00013801,2]
[331325222,1720231844808,-150.0,0.00013802,2]
[331325223,1720231844818,-150.0,0.00013806,2]
[331325224,1720231844826,-150.0,0.00013816,2]
[331325225,1720231844836,-150.0,0.00013818,2]
[331325226,1720231844845,-150.0,0.00013821,2]
[331325227,1720231844854,-150.0,0.00013827,2]
[331325228,1720231844864,-150.0,0.00013829,2]
[331325229,1720231844873,-150.0,0.00013842,2]
[331325230,1720231844882,-1633.11681468,0.00013849,2]
[331325231,1720231844891,-150.0,0.00013853,2]
[331325232,1720231844901,-150.0,0.00013863,2]
[331325233,1720231844911,-972.35929666,0.00013899,2]
[331325234,1720231844920,-3764.78192879,0.000139,2]
[331325235,1720231844930,-4000.0,0.000139,5]
[331325236,1720231844939,-356.0,0.000139,2]
[331325237,1720231844948,-1000.0,0.000139,2]
[331325238,1720231844961,-225.0,0.000139,2]
[331325239,1720231844970,-166.60509873,0.00013947,2]
[331325240,1720231844980,-4347.29767653,0.00013947,2]
[331325241,1720231844989,-259.96,0.00013973,2]
[331325242,1720231844999,-41127.7554999,0.00013989,2]
[331325243,1720231845008,-3843.5433618,0.00013989,2]
[331325244,1720231845017,-7933.3557276,0.00013989,2]
[331325245,1720231845027,-748.1803634,0.00013989,2]
[331325246,1720231845036,-38129.3938135,0.00013989,2]
[331325247,1720231845045,-500.0,0.00013999,2]
[331325248,1720231845055,-479.71349523,0.00013999,2]
[331325249,1720231845064,-356.08063485,0.00013999,2]
[331325250,1720231845074,-943.0,0.00014,2]
[331325251,1720231845083,-1048124.39721339,0.00014,2]
[331325252,1720231845092,-165.31408527,0.00014047,2]
[331325253,1720231845102,-150.0,0.00014237,2]
[331325254,1720231845111,-150.0,0.00014247,2]
[331325255,1720231845120,-150.0,0.00014247,2]
[331325256,1720231845129,-400.0,0.00014247,2]
[331325257,1720231845138,-5831.808,0.00014314,2]
[331325258,1720231845147,-1202.706,0.00014314,2]
[331325259,1720231845157,-5198.787,0.00014314,2]
[331325260,1720231845166,-38381.253,0.00014314,2]
[331325261,1720231845175,-1073.852,0.00014314,2]
[331325262,1720231845184,-1320.45118081,0.00014406,2]
[331325263,1720231845193,-623.7851,0.000147,2]
[331325264,1720231845204,-1502.4769,0.000147,2]
[331325265,1720231845213,-450.5365,0.000147,2]
[331325266,1720231845223,-4347.29767651,0.0001476,2]
[331325267,1720231845233,-329.8,0.00014795,2]
[331325268,1720231845242,-164.9,0.00014795,2]
[331325269,1720231845252,-164.9,0.00014795,2]
[331325270,1720231845261,-164.9,0.00014795,2]
[331325271,1720231845272,-150.0,0.00014795,2]
[331325272,1720231845282,-1000.0,0.0001484,2]
[331325273,1720231845292,-452.95239418,0.00014876,2]
[331325274,1720231845301,-153.16279109,0.00014986,2]
[331325275,1720231845311,-5812.0,0.00014986,2]
[331325276,1720231845320,-354762.06984294,0.00015,2]
[331325277,1720231845329,-491.0,0.00015,2]
[331325278,1720231845339,-40734.0,0.00015,2]
[331325279,1720231845348,-376.8,0.00015,2]
[331325280,1720231845357,-361.987,0.00015094,2]
[331325281,1720231845367,-166.918,0.00015094,2]
[331325282,1720231845376,-539.576,0.00015094,2]
[331325283,1720231845385,-766.937,0.00015094,2]
[331325284,1720231845395,-450.105,0.00015094,2]
[331325285,1720231845409,-816.163,0.00015094,2]
[331325286,1720231845418,-150.42,0.00015094,2]
[331325287,1720231845428,-2376.0,0.00015094,2]
[331325290,1720231845437,-1305.0,0.00015094,2]
[331325292,1720231845446,-550.377,0.00015094,2]
[331325295,1720231845457,-1988.0,0.00015094,2]
[331325298,1720231845467,-313.99,0.00015225,2]
[331325302,1720231845477,-11485.0,0.000153,3]
[331325306,1720231845490,-4347.29767651,0.00015573,2]
[331325309,1720231845500,-11485.0,0.000156,5]
[331325313,1720231845509,-528.58,0.00015616,2]
[331325317,1720231845519,-164.9,0.00015616,2]
[331325320,1720231845529,-528.58,0.00015616,2]
[331325322,1720231845538,-164.9,0.00015616,2]
[331325324,1720231845547,-300.0,0.00015616,2]
[331325326,1720231845556,-400.0,0.0001583,2]
[331325328,1720231845566,-452.95239418,0.00016211,2]
[331325331,1720231845575,-1000.0,0.00016324,2]
[331325333,1720231845584,-4347.29767651,0.00016386,2]
[331325335,1720231845593,-317.0,0.000164,2]
[331325337,1720231845602,-213.0,0.00016438,2]
[331325339,1720231845611,-540.389163,0.00016438,2]
[331325341,1720231845621,-540.389163,0.00016438,2]
[331325342,1720231845630,-540.389163,0.00016438,2]
[331325343,1720231845641,-540.389163,0.00016438,2]
[331325344,1720231845652,-540.389163,0.00016438,2]
[331325345,1720231845661,-540.389163,0.00016438,2]
[331325346,1720231845671,-540.389163,0.00016438,2]
[331325347,1720231845684,-540.389163,0.00016438,2]
[331325348,1720231845696,-540.389163,0.00016438,2]
[331325349,1720231845708,-540.389163,0.00016438,2]
[331325350,1720231845717,-540.389163,0.00016438,2]
[331325351,1720231845727,-540.389163,0.00016438,2]
[331325353,1720231845736,-540.389163,0.00016438,2]
[331325354,1720231845746,-540.389163,0.00016438,2]
[331325355,1720231845755,-540.389163,0.00016438,2]
[331325356,1720231845764,-540.389163,0.00016438,2]
[331325357,1720231845774,-540.389163,0.00016438,2]
[331325358,1720231845783,-540.389163,0.00016438,2]
[331325359,1720231845793,-540.389163,0.00016438,2]
[331325360,1720231845802,-540.389167,0.00016438,2]
[331325361,1720231845812,-2396.0,0.000165,2]
[331325362,1720231845821,-250.33298663,0.0001664,2]
[331325363,1720231845830,-150.38203477,0.000167,2]
[331325364,1720231845840,-150.076022,0.000167,2]
[331325365,1720231845849,-165.31408525,0.00016995,2]
[331325366,1720231845858,-213.0,0.00017034,2]
[331325367,1720231845868,-4347.29767651,0.00017199,2]
[331325368,1720231845877,-528.58,0.0001726,2]
[331325369,1720231845886,-611.87,0.0001726,2]
[331325370,1720231845896,-848.88,0.0001726,2]
[331325371,1720231845905,-528.58,0.0001726,2]
[331325372,1720231845914,-431.84,0.0001726,2]
[331325373,1720231845924,-424.44,0.0001726,2]
[331325374,1720231845933,-1091.48,0.0001726,2]
[331325375,1720231845943,-535.34,0.0001726,2]
[331325376,1720231845954,-424.44,0.0001726,2]
[331325377,1720231845963,-528.58,0.0001726,2]
[331325378,1720231845973,-424.44,0.0001726,2]
[331325379,1720231845982,-424.44,0.0001726,2]
[331325380,1720231845991,-1057.16,0.0001726,2]
[331325381,1720231846000,-528.58,0.0001726,2]
[331325382,1720231846011,-520.79,0.0001726,2]
[331325383,1720231846020,-400.0,0.00017413,2]
[331325384,1720231846030,-313.99,0.00017489,2]
[331325385,1720231846040,-452.95239418,0.00017547,2]
[331325386,1720231846049,-213.0,0.00017629,2]
[331325387,1720231846058,-1000.0,0.00017808,2]
[331325388,1720231846069,-347.24441003,0.00018,2]
[331325389,1720231846078,-4347.29767651,0.00018012,2]
[331325390,1720231846088,-150.68,0.00018082,2]
[331325391,1720231846098,-300.0,0.00018082,2]
[331325392,1720231846107,-150.0,0.00018094,2]
[331325393,1720231846130,-1801.24,0.00018094,2]
[331325394,1720231846150,-1298.31,0.00018094,2]
[331325395,1720231846159,-153.73,0.00018094,2]
[331325396,1720231846168,-8177.88555928,0.00018178,2]
[331325397,1720231846178,-213.0,0.00018225,2]
[331325398,1720231846188,-1636.31594,0.00018574,2]
[331325399,1720231846197,-1000.0,0.00018578,2]
[331325400,1720231846209,-5800.0,0.00018695,2]
[331325401,1720231846219,-4640.0,0.00018695,2]
[331325402,1720231846229,-945.06046542,0.00018695,2]
[331325403,1720231846238,-189.01209309,0.00018695,2]
[331325404,1720231846249,-8637.31430947,0.00018721,2]
[331325405,1720231846258,-21302.6642,0.00018721,2]
[331325406,1720231846267,-213.0,0.00018821,2]
[331325407,1720231846277,-4347.29767651,0.00018825,2]
[331325408,1720231846287,-2322.342,0.00018839,2]
[331325409,1720231846296,-165.46,0.00018849,30]
[331325410,1720231846305,-6019.0,0.00018877,2]
[331325411,1720231846315,-1861.0,0.00018877,2]
[331325412,1720231846324,-452.95239418,0.00018883,2]
[331325413,1720231846334,-104886.71099746,0.00018888,2]
[331325414,1720231846344,-153.53,0.000189,2]
[331325415,1720231846354,-153.53,0.000189,2]
[331325416,1720231846363,-354.94,0.00018904,2]
[331325417,1720231846373,-150.0,0.00018904,2]
[331325418,1720231846382,-400.0,0.00018996,2]
[331325419,1720231846392,-5000.0,0.00019,2]
[331325420,1720231846403,-852.56723081,0.00019,2]
[331325421,1720231846414,-151.0,0.00019178,2]
[331325422,1720231846424,-151.0,0.00019178,2]
[331325423,1720231846433,-151.0,0.00019178,2]
[331325424,1720231846443,-151.0,0.00019178,2]
[331325425,1720231846453,-151.0,0.00019178,2]
[331325426,1720231846461,-151.0,0.00019178,2]
[331325427,1720231846471,-151.0,0.00019178,2]
[331325428,1720231846483,-151.0,0.00019178,2]
[331325429,1720231846492,-151.0,0.00019178,2]
[331325430,1720231846501,-245.0,0.00019178,2]
[331325431,1720231846511,-250.0,0.00019178,2]
[331325432,1720231846520,-213.0,0.00019416,2]
[331325433,1720231846529,-2500.0,0.000195,2]
[331325434,1720231846538,-392.63959849,0.00019548,2]
[331325435,1720231846548,-4347.29767651,0.00019638,2]
[331325436,1720231846558,-354.94,0.00019726,2]
[331325437,1720231846571,-354.94,0.00019726,2]
[331325438,1720231846580,-150.0,0.00019726,2]
[331325439,1720231846590,-354.94,0.00019726,2]
[331325440,1720231846599,-352.74,0.00019726,2]
[331325441,1720231846608,-150.0,0.00019726,2]
[331325442,1720231846618,-313.99,0.00019752,2]
[331325443,1720231846627,-331312.885339,0.000198,3]
[331325444,1720231846637,-273.0,0.0001982,2]
[331325445,1720231846647,-153.53,0.0001989,2]
[331325446,1720231846657,-5400.0,0.000199,7]
[331325447,1720231846667,-388854.762496,0.000199,3]
[331325448,1720231846676,-165.31408525,0.00019942,2]
[331325449,1720231846686,-319.672445,0.00019997,2]
[331325450,1720231846695,-155.05360592,0.00019998,2]
[331325451,1720231846706,-6281.61778263,0.0002,2]
[331325452,1720231846715,-868.10770587,0.0002,2]
[331325453,1720231846724,-327.37681566,0.0002,2]
[331325454,1720231846733,-154.08353817,0.0002,2]
[331325455,1720231846742,-731.0385254,0.0002,5]
[331325456,1720231846751,-155.33673039,0.0002,2]
[331325457,1720231846760,-1250.0,0.0002,2]
[331325458,1720231846769,-982.0,0.0002,2]
[331325459,1720231846778,-251.66172598,0.0002,2]
[331325460,1720231846787,-213.86820576,0.0002,2]
[331325461,1720231846796,-213.86820576,0.0002,2]
[331325462,1720231846806,-213.86820576,0.0002,2]
[331325463,1720231846815,-213.86820576,0.0002,2]
[331325464,1720231846824,-213.86820576,0.0002,2]
[331325465,1720231846833,-213.86820576,0.0002,2]
[331325466,1720231846842,-213.86820576,0.0002,2]
[331325467,1720231846851,-213.86820576,0.0002,2]
[331325468,1720231846860,-213.86820576,0.0002,2]
[331325469,1720231846871,-213.86820576,0.0002,2]
[331325470,1720231846880,-213.86820576,0.0002,2]
[331325471,1720231846890,-213.0,0.00020012,2]
[331325472,1720231846899,-1038.0348168,0.00020037,2]
[331325473,1720231846909,-159.09083863,0.00020037,2]
[331325474,1720231846918,-1002.0,0.000201,2]
[331325475,1720231846927,-1857.36520596,0.000202,2]
[331325476,1720231846936,-452.95239418,0.00020219,2]
[331325477,1720231846950,-4347.29767651,0.00020451,2]
[331325478,1720231846960,-273.0,0.0002048,2]
[331325479,1720231846970,-1000.0,0.000205,4]
[331325480,1720231846980,-1005.06050521,0.000205,2]
[331325481,1720231846989,-451.12409175,0.000205,2]
[331325482,1720231846998,-570.0,0.00020548,2]
[331325483,1720231847008,-164.9,0.00020548,2]
[331325484,1720231847017,-164.9,0.00020548,2]
[331325485,1720231847026,-150.23,0.00020548,2]
[331325486,1720231847036,-213.0,0.00020607,2]
[331325487,1720231847045,-449.503331,0.00020677,2]
[331325488,1720231847054,-553.323499,0.00020677,2]
[331325489,1720231847063,-823.35633,0.00020677,2]
[331325490,1720231847073,-689.627142,0.00020677,2]
[331325491,1720231847082,-176.691041,0.00020677,2]
[331325492,1720231847091,-182.23597,0.00020677,2]
[331325493,1720231847100,-3602.443644,0.00020677,2]
[331325494,1720231847109,-175.127576,0.00020677,2]
[331325495,1720231847118,-177.720741,0.00020677,2]
[331325496,1720231847127,-4334.652485,0.00020677,2]
[331325497,1720231847137,-8637.31430947,0.00020806,2]
[331325498,1720231847146,-179.43677357,0.000209,2]
[331325499,1720231847155,-449.503331,0.00020936,2]
[331325500,1720231847164,-553.323499,0.00020936,2]
[331325501,1720231847173,-823.35633,0.00020936,2]
[331325502,1720231847183,-689.627142,0.00020936,2]
[331325503,1720231847192,-3602.443644,0.00020936,2]
[331325504,1720231847202,-4334.652485,0.00020936,2]
[331325505,1720231847214,-225.33520988,0.00021,2]
[331325506,1720231847224,-1000.0,0.00021,5]
[331325507,1720231847233,-1000.0,0.00021,4]
[331325508,1720231847244,-3067.51559151,0.00021,2]
[331325509,1720231847254,-1000.0,0.00021,2]
[331325510,1720231847264,-203.48926,0.00021,2]
[331325511,1720231847274,-716.86932143,0.00021012,2]
[331325512,1720231847283,-273.0,0.0002114,2]
[331325513,1720231847292,-182.23597,0.00021194,2]
[331325514,1720231847302,-449.503331,0.00021194,2]
[331325515,1720231847318,-553.323499,0.00021194,2]
[331325516,1720231847327,-823.35633,0.00021194,2]
[331325517,1720231847338,-689.627142,0.00021194,2]
[331325518,1720231847348,-3602.443644,0.00021194,2]
[331325519,1720231847357,-4334.652485,0.00021194,2]
[331325520,1720231847367,-213.0,0.00021203,2]
[331325521,1720231847376,-4347.29767651,0.00021264,2]
[331325522,1720231847386,-150.0,0.0002137,2]
[331325523,1720231847395,-150.0,0.0002137,2]
[331325524,1720231847409,-150.0,0.0002137,2]
[331325525,1720231847418,-151.6,0.0002137,2]
[331325526,1720231847427,-150.0,0.0002137,2]
[331325527,1720231847436,-150.0,0.0002137,2]
[331325528,1720231847447,-150.0,0.0002137,2]
[331325529,1720231847458,-180.0,0.00021397,2]
[331325530,1720231847651,-200.442117,0.00021422,2]
[331325531,1720231847662,-2158.981874,0.00021422,2]
[331325532,1720231847671,-2955.544893,0.00021422,2]
[331325533,1720231847681,-185.003338,0.00021422,2]
[331325534,1720231847691,-174.532493,0.00021422,2]
[331325535,1720231847702,-268.590485,0.00021422,2]
[331325536,1720231847712,-2573.654909,0.00021422,2]
[331325537,1720231847722,-1371.382682,0.00021422,2]
[331325538,1720231847731,-599.717187,0.00021422,2]
[331325539,1720231847747,-1432.314723,0.00021422,2]
[331325540,1720231847756,-1371.382682,0.00021422,2]
[331325541,1720231847765,-899.575781,0.00021422,2]
[331325542,1720231847775,-177.154802,0.00021422,2]
[331325543,1720231847784,-2338.100547,0.00021422,2]
[331325544,1720231847793,-470.770914,0.00021422,2]
[331325545,1720231847803,-277.906402,0.00021422,2]
[331325546,1720231847812,-193.503366,0.00021422,2]
[331325547,1720231847821,-850.638858,0.00021422,2]
[331325548,1720231847830,-1235.034496,0.00021422,2]
[331325549,1720231847839,-176.691041,0.00021422,2]
[331325550,1720231847849,-1034.440713,0.00021422,2]
[331325551,1720231847858,-449.503331,0.00021453,2]
[331325552,1720231847868,-553.323499,0.00021453,2]
[331325553,1720231847878,-823.35633,0.00021453,2]
[331325554,1720231847887,-689.627142,0.00021453,2]
[331325555,1720231847897,-3602.443644,0.00021453,2]
[331325556,1720231847906,-4334.652485,0.00021453,2]
[331325557,1720231847915,-1000.0,0.000215,2]
[331325558,1720231847925,-838.28,0.00021507,2]
[331325559,1720231847935,-452.95239418,0.00021554,2]
[331325560,1720231847944,-269.43,0.00021644,2]
[331325561,1720231847954,-547.92,0.00021644,2]
[331325562,1720231847963,-2158.981874,0.0002169,2]
[331325563,1720231847972,-2955.544893,0.0002169,2]
[331325564,1720231847981,-268.590485,0.0002169,2]
[331325565,1720231847990,-2573.654909,0.0002169,2]
[331325566,1720231847999,-1371.382682,0.0002169,2]
[331325567,1720231848008,-599.717187,0.0002169,2]
[331325568,1720231848018,-1432.314723,0.0002169,2]
[331325569,1720231848027,-1371.382682,0.0002169,2]
[331325570,1720231848036,-899.575781,0.0002169,2]
[331325571,1720231848045,-2338.100547,0.0002169,2]
[331325572,1720231848054,-470.770914,0.0002169,2]
[331325573,1720231848063,-277.906402,0.0002169,2]
[331325574,1720231848072,-193.503366,0.0002169,2]
[331325575,1720231848081,-850.638858,0.0002169,2]
[331325576,1720231848093,-1235.034496,0.0002169,2]
[331325577,1720231848103,-1034.440713,0.0002169,2]
[331325578,1720231848113,-22362.55675355,0.000217,2]
[331325579,1720231848123,-182.23597,0.00021711,2]
[331325580,1720231848133,-175.127576,0.00021711,2]
[331325581,1720231848142,-177.720741,0.00021711,2]
[331325582,1720231848152,-449.503331,0.00021711,2]
[331325583,1720231848162,-553.323499,0.00021711,2]
[331325584,1720231848172,-823.35633,0.00021711,2]
[331325585,1720231848182,-689.627142,0.00021711,2]
[331325586,1720231848192,-3602.443644,0.00021711,2]
[331325587,1720231848202,-4334.652485,0.00021711,2]
[331325588,1720231848212,-821.9,0.00021757,2]
[331325589,1720231848222,-27146.44,0.00021757,2]
[331325590,1720231848232,-528.58,0.00021781,2]
[331325591,1720231848241,-213.0,0.00021799,2]
[331325592,1720231848251,-273.0,0.000218,2]
[331325593,1720231848260,-162404.40622191,0.000219,2]
[331325594,1720231848270,-150.0,0.00021917,2]
[331325595,1720231848279,-300.0,0.00021917,2]
[331325596,1720231848289,-450.0,0.00021917,2]
[331325597,1720231848298,-600.0,0.00021917,2]
[331325598,1720231848307,-750.0,0.00021917,2]
[331325599,1720231848317,-256.90414705,0.00021917,2]
[331325600,1720231848326,-178.36,0.00021918,2]
[331325601,1720231848335,-150.0,0.00021918,2]
[331325602,1720231848345,-771.76,0.00021918,2]
[331325603,1720231848354,-150.0,0.00021918,2]
[331325604,1720231848363,-150.0,0.00021918,2]
[331325605,1720231848372,-150.0,0.00021918,2]
[331325606,1720231848382,-155.39650838,0.00021918,2]
[331325607,1720231848391,-185.003338,0.00021958,2]
[331325608,1720231848401,-174.532493,0.00021958,2]
[331325609,1720231848414,-2158.981874,0.00021958,2]
[331325610,1720231848423,-2955.544893,0.00021958,2]
[331325611,1720231848433,-268.590485,0.00021958,2]
[331325612,1720231848443,-2573.654909,0.00021958,2]
[331325614,1720231848461,-1371.382682,0.00021958,2]
[331325615,1720231848470,-599.717187,0.00021958,2]
[331325616,1720231848480,-1432.314723,0.00021958,2]
[331325617,1720231848489,-1371.382682,0.00021958,2]
[331325618,1720231848499,-899.575781,0.00021958,2]
[331325619,1720231848509,-2338.100547,0.00021958,2]
[331325620,1720231848518,-470.770914,0.00021958,2]
[331325621,1720231848527,-277.906402,0.00021958,2]
[331325622,1720231848536,-193.503366,0.00021958,2]
[331325623,1720231848546,-850.638858,0.00021958,2]
[331325624,1720231848556,-1235.034496,0.00021958,2]
[331325625,1720231848565,-1034.440713,0.00021958,2]
[331325626,1720231848575,-4977.04400363,0.00022,2]
[331325627,1720231848584,-457.04437373,0.00022,2]
[331325628,1720231848593,-1000.0,0.00022,5]
[331325629,1720231848603,-793.21748261,0.00022,2]
[331325630,1720231848612,-7423.35611806,0.00022,5]
[331325631,1720231848621,-1000.0,0.00022,2]
[331325632,1720231848631,-1300.0,0.00022,2]
[331325633,1720231848643,-313.99,0.00022016,2]
[331325634,1720231848652,-4347.29767651,0.00022077,2]
[331325635,1720231848661,-424.44,0.00022192,2]
[331325636,1720231848671,-424.44,0.00022192,2]
[331325637,1720231848680,-424.44,0.00022192,2]
[331325638,1720231848689,-2500.0,0.000222,2]
[331325639,1720231848698,-2158.981874,0.00022225,2]
[331325640,1720231848709,-2955.544893,0.00022225,2]
[331325641,1720231848719,-268.590485,0.00022225,2]
[331325642,1720231848729,-2573.654909,0.00022225,2]
[331325643,1720231848738,-1371.382682,0.00022225,2]
[331325644,1720231848747,-599.717187,0.00022225,2]
[331325645,1720231848756,-1432.314723,0.00022225,2]
[331325646,1720231848765,-1371.382682,0.00022225,2]
[331325647,1720231848775,-899.575781,0.00022225,2]
[331325648,1720231848787,-2338.100547,0.00022225,2]
[331325649,1720231848798,-470.770914,0.00022225,2]
[331325650,1720231848807,-277.906402,0.00022225,2]
[331325651,1720231848816,-193.503366,0.00022225,2]
[331325652,1720231848840,-850.638858,0.00022225,2]
[331325653,1720231848850,-1235.034496,0.00022225,2]
[331325654,1720231848859,-1034.440713,0.00022225,2]
[331325655,1720231848868,-213.0,0.00022394,2]
[331325656,1720231848878,-6800.0,0.000224,8]
[331325657,1720231848888,-273.0,0.0002246,2]
[331325658,1720231848897,-500.0,0.00022476,2]
[331325659,1720231848907,-185.003338,0.00022493,2]
[331325660,1720231848917,-174.532493,0.00022493,2]
[331325661,1720231848927,-2158.981874,0.00022493,2]
[331325662,1720231848937,-2955.544893,0.00022493,2]
[331325663,1720231848946,-268.590485,0.00022493,2]
[331325664,1720231848956,-2573.654909,0.00022493,2]
[331325665,1720231848966,-1371.382682,0.00022493,2]
[331325666,1720231848975,-599.717187,0.00022493,2]
[331325667,1720231848985,-1371.382682,0.00022493,2]
[331325668,1720231848995,-1432.314723,0.00022493,2]
[331325669,1720231849005,-899.575781,0.00022493,2]
[331325670,1720231849015,-2338.100547,0.00022493,2]
[331325671,1720231849025,-470.770914,0.00022493,2]
[331325672,1720231849035,-277.906402,0.00022493,2]
[331325673,1720231849044,-193.503366,0.00022493,2]
[331325674,1720231849054,-850.638858,0.00022493,2]
[331325675,1720231849063,-1235.034496,0.00022493,2]
[331325676,1720231849073,-1034.440713,0.00022493,2]
[331325677,1720231849083,-150.0,0.00022495,2]
[331325678,1720231849094,-2214.23451348,0.000225,3]
[331325679,1720231849103,-1300.0,0.000225,8]
[331325680,1720231849113,-1300.0,0.000226,8]
[331325681,1720231849123,-528.58,0.00022603,2]
[331325682,1720231849133,-197.0,0.0002269,5]
[331325683,1720231849142,-1300.0,0.000227,8]
[331325684,1720231849152,-11683.32736513,0.00022759,2]
[331325685,1720231849162,-2206.58788857,0.000228,2]
[331325686,1720231849171,-1300.0,0.000228,8]
[331325687,1720231849181,-800.0,0.00022877,2]
[331325688,1720231849191,-800.0,0.00022877,2]
[331325689,1720231849200,-800.0,0.00022877,2]
[331325690,1720231849211,-800.0,0.00022877,2]
[331325691,1720231849220,-284765.74363808,0.0002288,2]
[331325692,1720231849229,-326375.51567151,0.0002288,2]
[331325693,1720231849239,-350.0,0.0002288,13]
[331325694,1720231849248,-4553.72630153,0.0002288,2]
[331325695,1720231849258,-165.31408525,0.0002289,2]
[331325696,1720231849267,-452.95239418,0.0002289,2]
[331325697,1720231849277,-4347.29767651,0.0002289,2]
[331325698,1720231849287,-1000.0,0.00022899,2]
[331325699,1720231849297,-491.0,0.000229,5]
[331325700,1720231849306,-2000.0,0.000229,2]
[331325701,1720231849316,-327.0,0.000229,5]
[331325702,1720231849326,-262.0,0.000229,2]
[331325703,1720231849335,-1924.0,0.000229,8]
[331325704,1720231849344,-700.0,0.0002297,2]
[331325705,1720231849354,-400.0,0.0002297,2]
[331325706,1720231849363,-1277.87565548,0.0002297,2]
[331325707,1720231849373,-500.50991919,0.0002297,2]
[331325708,1720231849382,-700.0,0.0002297,2]
[331325709,1720231849391,-400.0,0.0002297,2]